[Event "World Junior Chess Championship U20 2022"]
[White "Kozak, Antoni"]
[Black "Jakab, Bela"]
[WhiteFideId "21832030"]
[BlackFideId "14933128"]
[WhiteElo "2440"]
[BlackElo "2353"]
[Result "0-1"]
[Round "02"]
[TimeControl "5400+30"]
[Date "2022.10.13"]
[WhiteClock "0:10:32"]
[BlackClock "0:04:30"]

1. Nf3 {[%clk 1:30:55]}  d5 {[%clk 1:30:47]} 2. e3 {[%clk 1:31:21]}  Nf6 {[%clk 1:31:12]} 3. c4 {[%clk 1:31:48]}  e6 {[%clk 1:31:36]} 4. b3 {[%clk 1:32:11]}  Be7 {[%clk 1:31:11]} 5. Bb2 {[%clk 1:32:34]}  O-O {[%clk 1:31:11]} 6. Nc3 {[%clk 1:33:02]}  dxc4 {[%clk 1:31:44]} 7. Bxc4 {[%clk 1:33:07]}  c5 {[%clk 1:31:42]} 8. Rg1 {[%clk 1:33:34]}  a6 {[%clk 1:27:21]} 9. Qe2 {[%clk 1:23:43]}  Nc6 {[%clk 1:26:11]} 10. Bd3 {[%clk 1:22:19]}  e5 {[%clk 1:22:03]} 11. Ne4 {[%clk 1:13:19]}  Qd5 {[%clk 0:53:53]} 12. Nfg5 {[%clk 1:09:41]}  Nxe4 {[%clk 0:43:34]} 13. Bxe4 {[%clk 1:09:41]}  Qd6 {[%clk 0:43:53]} 14. Nf3 {[%clk 0:53:36]}  Be6 {[%clk 0:33:51]} 15. Bxc6 {[%clk 0:44:35]}  Qxc6 {[%clk 0:34:15]} 16. Nxe5 {[%clk 0:44:58]}  Qc7 {[%clk 0:34:39]} 17. f4 {[%clk 0:44:42]}  b5 {[%clk 0:34:43]} 18. g4 {[%clk 0:43:22]}  f6 {[%clk 0:33:28]} 19. Nf3 {[%clk 0:43:45]}  c4 {[%clk 0:32:32]} 20. Nd4 {[%clk 0:38:46]}  Bf7 {[%clk 0:32:33]} 21. Nf5 {[%clk 0:38:37]}  Qd7 {[%clk 0:27:13]} 22. Nxe7+ {[%clk 0:33:25]}  Qxe7 {[%clk 0:27:42]} 23. g5 {[%clk 0:33:47]}  f5 {[%clk 0:27:24]} 24. bxc4 {[%clk 0:34:12]}  bxc4 {[%clk 0:26:14]} 25. h4 {[%clk 0:33:45]}  Rfc8 {[%clk 0:19:36]} 26. Kf2 {[%clk 0:30:13]}  Bd5 {[%clk 0:19:08]} 27. Be5 {[%clk 0:28:23]}  Be4 {[%clk 0:18:51]} 28. Rgc1 {[%clk 0:28:23]}  Qe6 {[%clk 0:18:13]} 29. Rc3 {[%clk 0:28:41]}  Rc6 {[%clk 0:18:11]} 30. Rac1 {[%clk 0:28:37]}  Rac8 {[%clk 0:18:20]} 31. h5 {[%clk 0:28:24]}  Qd5 {[%clk 0:18:33]} 32. Bd4 {[%clk 0:28:03]}  Qb5 {[%clk 0:17:57]} 33. Ra3 {[%clk 0:26:31]}  Qb4 {[%clk 0:16:57]} 34. Rac3 {[%clk 0:26:30]}  Qb5 {[%clk 0:17:22]} 35. Qd1 {[%clk 0:26:45]}  Qa5 {[%clk 0:16:13]} 36. Kg3 {[%clk 0:26:39]}  Qd5 {[%clk 0:15:28]} 37. Ra3 {[%clk 0:26:58]}  Rb8 {[%clk 0:14:30]} 38. Rac3 {[%clk 0:23:40]}  Rbc8 {[%clk 0:13:26]} 39. Kf2 {[%clk 0:22:56]}  Qb5 {[%clk 0:12:34]} 40. Kg3 {[%clk 0:22:58]}  Qd5 {[%clk 0:12:24]} 41. R3c2 {[%clk 0:23:17]}  Bxc2 {[%clk 0:03:30]} 42. Qxc2 {[%clk 0:23:42]}  Qf7 {[%clk 0:03:43]} 43. Rb1 {[%clk 0:22:58]}  Rd6 {[%clk 0:29:00]} 44. Qd1 {[%clk 0:48:05]}  Re8 {[%clk 0:25:05]} 45. Qf3 {[%clk 0:47:12]}  Rxd4 {[%clk 0:20:22]} 46. exd4 {[%clk 0:47:37]}  Qd7 {[%clk 0:20:43]} 47. Qc3 {[%clk 0:45:03]}  Qf7 {[%clk 0:20:20]} 48. Qf3 {[%clk 0:42:25]}  Qd7 {[%clk 0:19:24]} 49. d5 {[%clk 0:40:42]}  Qd6 {[%clk 0:19:39]} 50. Rf1 {[%clk 0:36:29]}  Qc5 {[%clk 0:19:08]} 51. Rf2 {[%clk 0:34:38]}  Re4 {[%clk 0:19:01]} 52. d6 {[%clk 0:33:35]}  Qxd6 {[%clk 0:19:16]} 53. Re2 {[%clk 0:33:59]}  Qd4 {[%clk 0:18:05]} 54. Rxe4 {[%clk 0:33:41]}  fxe4 {[%clk 0:18:33]} 55. Qc3 {[%clk 0:34:06]}  Qc5 {[%clk 0:16:58]} 56. Kg2 {[%clk 0:32:06]}  Qc6 {[%clk 0:16:29]} 57. Kg3 {[%clk 0:31:22]}  Qd5 {[%clk 0:14:25]} 58. Kf2 {[%clk 0:30:06]}  Kf7 {[%clk 0:14:17]} 59. h6 {[%clk 0:29:56]}  gxh6 {[%clk 0:13:36]} 60. gxh6 {[%clk 0:30:19]}  Ke6 {[%clk 0:13:28]} 61. Ke1 {[%clk 0:30:32]}  Qc5 {[%clk 0:09:14]} 62. Qg7 {[%clk 0:29:17]}  c3 {[%clk 0:08:31]} 63. Qg8+ {[%clk 0:26:06]}  Kf6 {[%clk 0:08:33]} 64. Qh8+ {[%clk 0:25:59]}  Ke6 {[%clk 0:08:18]} 65. Qxc3 {[%clk 0:25:57]}  Qg1+ {[%clk 0:06:05]} 66. Ke2 {[%clk 0:26:15]}  Qg4+ {[%clk 0:06:14]} 67. Ke3 {[%clk 0:26:25]}  Qf3+ {[%clk 0:06:31]} 68. Kd4 {[%clk 0:26:51]}  Qxf4 {[%clk 0:06:47]} 69. Qc4+ {[%clk 0:24:37]}  Kf5 {[%clk 0:06:39]} 70. Qd5+ {[%clk 0:21:50]}  Kf6 {[%clk 0:06:09]} 71. Qc6+ {[%clk 0:18:43]}  Kg5 {[%clk 0:06:21]} 72. Kc3 {[%clk 0:17:49]}  Qf3+ {[%clk 0:06:00]} 73. Kb4 {[%clk 0:17:02]}  Qd3 {[%clk 0:06:08]} 74. Qc5+ {[%clk 0:17:01]}  Kxh6 {[%clk 0:06:25]} 75. Qf8+ {[%clk 0:17:29]}  Kg5 {[%clk 0:06:34]} 76. Qg7+ {[%clk 0:14:47]}  Kf4 {[%clk 0:06:42]} 77. Ka4 {[%clk 0:11:56]}  Kf3 {[%clk 0:06:01]} 78. Qxh7 {[%clk 0:12:21]}  Qxd2 {[%clk 0:06:15]} 79. Qf5+ {[%clk 0:11:44]}  Ke3 {[%clk 0:06:25]} 80. Qg5+ {[%clk 0:12:10]}  Ke2 {[%clk 0:06:28]} 81. Qh5+ {[%clk 0:12:33]}  Kf2 {[%clk 0:03:25]} 82. Qf5+ {[%clk 0:12:59]}  Ke3 {[%clk 0:03:42]} 83. Qg5+ {[%clk 0:13:27]}  Kd3 {[%clk 0:03:19]} 84. Qd5+ {[%clk 0:13:52]}  Kc3 {[%clk 0:03:26]} 85. Qc6+ {[%clk 0:13:52]}  Kb2 {[%clk 0:03:44]} 86. Qxe4 {[%clk 0:10:12]}  Qd7+ {[%clk 0:04:05]} 87. Kb4 {[%clk 0:10:32]}  Qb5# {[%clk 0:04:30]} 0-1


[Site "http://www.chessbomb.com"]

[Event "World Junior Chess Championship U20 2022"]
[White "Lux, Hugo de Melo"]
[Black "Baenziger, Fabian"]
[WhiteFideId "2138298"]
[BlackFideId "1330110"]
[WhiteElo "2309"]
[BlackElo "2439"]
[Result "1/2-1/2"]
[Round "02"]
[TimeControl "5400+30"]
[Date "2022.10.13"]
[WhiteClock "0:00:33"]
[BlackClock "0:11:03"]

1. e4 {[%clk 1:28:55]}  c5 {[%clk 1:30:49]} 2. Nc3 {[%clk 1:28:42]}  d6 {[%clk 1:30:52]} 3. f4 {[%clk 1:28:42]}  g6 {[%clk 1:31:14]} 4. Nf3 {[%clk 1:29:06]}  Bg7 {[%clk 1:31:37]} 5. Bc4 {[%clk 1:29:06]}  Nc6 {[%clk 1:31:01]} 6. O-O {[%clk 1:28:25]}  e6 {[%clk 1:31:10]} 7. d4 {[%clk 1:28:18]}  cxd4 {[%clk 1:31:21]} 8. Nb5 {[%clk 1:28:37]}  Nge7 {[%clk 1:27:18]} 9. Bb3 {[%clk 1:28:51]}  O-O {[%clk 1:26:11]} 10. Nbxd4 {[%clk 1:28:33]}  Na5 {[%clk 1:24:11]} 11. Be3 {[%clk 1:28:37]}  a6 {[%clk 1:16:28]} 12. Qe1 {[%clk 1:28:53]}  Bd7 {[%clk 1:07:00]} 13. Rd1 {[%clk 1:13:18]}  Qc7 {[%clk 0:57:13]} 14. Qh4 {[%clk 0:58:18]}  Nxb3 {[%clk 0:57:08]} 15. axb3 {[%clk 0:58:21]}  f6 {[%clk 0:55:15]} 16. c4 {[%clk 0:26:14]}  Rae8 {[%clk 0:50:27]} 17. Qf2 {[%clk 0:13:34]}  b5 {[%clk 0:37:35]} 18. Qe2 {[%clk 0:12:02]}  Qb7 {[%clk 0:37:50]} 19. Bf2 {[%clk 0:11:33]}  e5 {[%clk 0:26:55]} 20. fxe5 {[%clk 0:10:40]}  dxe5 {[%clk 0:27:19]} 21. Nc2 {[%clk 0:11:06]}  bxc4 {[%clk 0:27:23]} 22. bxc4 {[%clk 0:05:43]}  Bc6 {[%clk 0:26:03]} 23. Rfe1 {[%clk 0:06:12]}  f5 {[%clk 0:24:05]} 24. Ng5 {[%clk 0:04:50]}  Nc8 {[%clk 0:24:07]} 25. Bc5 {[%clk 0:03:53]}  Rf6 {[%clk 0:24:17]} 26. exf5 {[%clk 0:02:55]}  gxf5 {[%clk 0:24:17]} 27. Ne3 {[%clk 0:03:04]}  h6 {[%clk 0:19:12]} 28. Nh3 {[%clk 0:01:31]}  Be4 {[%clk 0:14:06]} 29. Qh5 {[%clk 0:00:40]}  Qc6 {[%clk 0:13:23]} 30. Nf2 {[%clk 0:01:09]}  Rf7 {[%clk 0:11:42]} 31. Nxe4 {[%clk 0:01:29]}  Qxe4 {[%clk 0:12:05]} 32. Rd7 {[%clk 0:00:34]}  Ne7 {[%clk 0:09:31]} 33. Bxe7 {[%clk 0:01:01]}  Rexe7 {[%clk 0:09:42]} 34. Rxe7 {[%clk 0:01:25]}  Rxe7 {[%clk 0:10:09]} 35. Qxf5 {[%clk 0:01:51]}  Qd4 {[%clk 0:09:48]} 36. Qc8+ {[%clk 0:02:09]}  Kh7 {[%clk 0:10:14]} 37. Qf5+ {[%clk 0:02:33]}  Kg8 {[%clk 0:10:38]} 38. Qc8+ {[%clk 0:00:50]}  Kh7 {[%clk 0:11:03]} 39. Qf5+ {[%clk 0:00:33]} 1/2-1/2


[Site "http://www.chessbomb.com"]

[Event "World Junior Chess Championship U20 2022"]
[White "Blohberger, Felix"]
[Black "Ballesteros Cardenas, Leonardo"]
[WhiteFideId "1632051"]
[BlackFideId "3428141"]
[WhiteElo "2493"]
[BlackElo "2121"]
[Result "1-0"]
[Round "02"]
[TimeControl "5400+30"]
[Date "2022.10.13"]
[WhiteClock "0:12:44"]
[BlackClock "0:14:13"]

1. Nf3 {[%clk 1:30:48]}  Nf6 {[%clk 1:30:11]} 2. g3 {[%clk 1:26:08]}  d5 {[%clk 1:27:58]} 3. Bg2 {[%clk 1:26:29]}  c5 {[%clk 1:27:20]} 4. O-O {[%clk 1:26:12]}  Nc6 {[%clk 1:27:08]} 5. d4 {[%clk 1:26:28]}  e6 {[%clk 1:26:00]} 6. c4 {[%clk 1:26:36]}  Be7 {[%clk 1:23:03]} 7. cxd5 {[%clk 1:26:55]}  exd5 {[%clk 1:21:20]} 8. Nc3 {[%clk 1:26:42]}  O-O {[%clk 1:16:30]} 9. a3 {[%clk 1:20:40]}  h6 {[%clk 1:06:58]} 10. dxc5 {[%clk 1:20:43]}  Bxc5 {[%clk 1:07:25]} 11. b4 {[%clk 1:21:04]}  Be7 {[%clk 1:04:53]} 12. Bb2 {[%clk 1:21:27]}  Be6 {[%clk 0:57:19]} 13. Rc1 {[%clk 1:20:05]}  Qd7 {[%clk 0:53:35]} 14. Rc2 {[%clk 0:58:33]}  Rfd8 {[%clk 0:52:44]} 15. Rd2 {[%clk 0:58:18]}  Qc7 {[%clk 0:49:33]} 16. Qa1 {[%clk 0:53:02]}  Rd7 {[%clk 0:45:00]} 17. Rc1 {[%clk 0:48:33]}  Qd8 {[%clk 0:43:02]} 18. e3 {[%clk 0:45:58]}  Rc8 {[%clk 0:38:21]} 19. Ne2 {[%clk 0:44:09]}  a6 {[%clk 0:37:40]} 20. Rcd1 {[%clk 0:37:08]}  Qb6 {[%clk 0:30:05]} 21. Nf4 {[%clk 0:30:31]}  a5 {[%clk 0:23:08]} 22. Nxe6 {[%clk 0:26:13]}  fxe6 {[%clk 0:23:36]} 23. Bh3 {[%clk 0:25:37]}  Rd6 {[%clk 0:21:48]} 24. bxa5 {[%clk 0:22:04]}  Nxa5 {[%clk 0:20:03]} 25. Bd4 {[%clk 0:14:19]}  Qa6 {[%clk 0:20:23]} 26. Bxf6 {[%clk 0:10:16]}  Bxf6 {[%clk 0:19:52]} 27. Qb1 {[%clk 0:10:36]}  Nc4 {[%clk 0:19:59]} 28. Rxd5 {[%clk 0:09:24]}  Rxd5 {[%clk 0:16:25]} 29. Rxd5 {[%clk 0:09:46]}  Qc6 {[%clk 0:09:36]} 30. Nd4 {[%clk 0:08:32]}  Bxd4 {[%clk 0:09:51]} 31. Rxd4 {[%clk 0:08:54]}  Ne5 {[%clk 0:08:32]} 32. Bg2 {[%clk 0:08:20]}  Nf3+ {[%clk 0:08:35]} 33. Bxf3 {[%clk 0:07:44]}  Qxf3 {[%clk 0:09:02]} 34. Rd1 {[%clk 0:05:30]}  Qc6 {[%clk 0:03:25]} 35. Qb3 {[%clk 0:05:28]}  Ra8 {[%clk 0:01:53]} 36. h4 {[%clk 0:05:44]}  b5 {[%clk 0:00:53]} 37. Rd4 {[%clk 0:03:35]}  Kh8 {[%clk 0:00:33]} 38. Qb2 {[%clk 0:02:40]}  Rc8 {[%clk 0:00:38]} 39. Kh2 {[%clk 0:01:52]}  Kg8 {[%clk 0:00:40]} 40. Rg4 {[%clk 0:01:51]}  Rc7 {[%clk 0:00:43]} 41. Qe5 {[%clk 0:25:06]}  Rf7 {[%clk 0:30:02]} 42. Rf4 {[%clk 0:21:41]}  Rxf4 {[%clk 0:22:09]} 43. exf4 {[%clk 0:16:43]}  Kh7 {[%clk 0:18:38]} 44. Qd4 {[%clk 0:13:55]}  Qc4 {[%clk 0:17:57]} 45. Qe3 {[%clk 0:13:57]}  Qd5 {[%clk 0:18:06]} 46. g4 {[%clk 0:12:50]}  Qc4 {[%clk 0:16:47]} 47. Kg3 {[%clk 0:12:47]}  Qd5 {[%clk 0:17:05]} 48. h5 {[%clk 0:12:39]}  g6 {[%clk 0:13:26]} 49. Qa7+ {[%clk 0:12:11]}  Kg8 {[%clk 0:13:05]} 50. hxg6 {[%clk 0:11:41]}  Qd3+ {[%clk 0:13:33]} 51. f3 {[%clk 0:11:54]}  Qxg6 {[%clk 0:13:44]} 52. Qb8+ {[%clk 0:12:16]}  Kf7 {[%clk 0:14:06]} 53. Qb7+ {[%clk 0:12:01]}  Kf6 {[%clk 0:13:58]} 54. Qxb5 {[%clk 0:12:22]}  Qc2 {[%clk 0:13:47]} 55. Qe5+ {[%clk 0:12:30]}  Kf7 {[%clk 0:14:13]} 56. f5 {[%clk 0:12:44]} 1-0


[Site "http://www.chessbomb.com"]

[Event "World Junior Chess Championship U20 2022"]
[White "Vagman, Roy"]
[Black "Nesterov, Arseniy"]
[WhiteFideId "2828995"]
[BlackFideId "24198455"]
[WhiteElo "2274"]
[BlackElo "2567"]
[Result "0-1"]
[Round "02"]
[TimeControl "5400+30"]
[Date "2022.10.13"]
[WhiteClock "0:04:43"]
[BlackClock "0:27:14"]

1. e4 {[%clk 1:30:55]}  c6 {[%clk 1:30:52]} 2. d4 {[%clk 1:31:09]}  d5 {[%clk 1:31:17]} 3. e5 {[%clk 1:31:19]}  c5 {[%clk 1:31:40]} 4. dxc5 {[%clk 1:31:11]}  e6 {[%clk 1:32:02]} 5. c3 {[%clk 1:30:41]}  Nc6 {[%clk 1:29:06]} 6. Nf3 {[%clk 1:30:32]}  Bxc5 {[%clk 1:28:50]} 7. b4 {[%clk 1:29:42]}  Bb6 {[%clk 1:15:17]} 8. b5 {[%clk 1:28:52]}  Nce7 {[%clk 1:00:14]} 9. Bd3 {[%clk 1:25:44]}  f6 {[%clk 0:56:24]} 10. Qc2 {[%clk 1:18:19]}  fxe5 {[%clk 0:42:56]} 11. Nxe5 {[%clk 1:18:04]}  Nf6 {[%clk 0:43:19]} 12. Bg5 {[%clk 1:13:55]}  Qc7 {[%clk 0:39:06]} 13. Qe2 {[%clk 0:30:14]}  Ne4 {[%clk 0:37:07]} 14. f4 {[%clk 0:29:00]}  Nxg5 {[%clk 0:27:49]} 15. Qh5+ {[%clk 0:29:00]}  g6 {[%clk 0:28:11]} 16. Qxg5 {[%clk 0:24:28]}  Qc5 {[%clk 0:27:37]} 17. Ng4 {[%clk 0:18:13]}  Rf8 {[%clk 0:26:25]} 18. Kd1 {[%clk 0:17:23]}  Bd7 {[%clk 0:19:13]} 19. Nf6+ {[%clk 0:17:14]}  Kd8 {[%clk 0:19:05]} 20. Re1 {[%clk 0:14:55]}  h6 {[%clk 0:15:11]} 21. Qxh6 {[%clk 0:13:47]}  Rxf6 {[%clk 0:09:41]} 22. Qh8+ {[%clk 0:14:13]}  Ng8 {[%clk 0:10:07]} 23. Qxg8+ {[%clk 0:14:25]}  Kc7 {[%clk 0:09:12]} 24. Qxa8 {[%clk 0:11:14]}  Rf8 {[%clk 0:09:35]} 25. Qxf8 {[%clk 0:11:34]}  Qxf8 {[%clk 0:10:02]} 26. g3 {[%clk 0:11:46]}  Qh6 {[%clk 0:07:59]} 27. Re2 {[%clk 0:06:39]}  e5 {[%clk 0:04:56]} 28. Rxe5 {[%clk 0:06:49]}  Qxh2 {[%clk 0:05:19]} 29. Nd2 {[%clk 0:07:03]}  Qxg3 {[%clk 0:05:31]} 30. Kc2 {[%clk 0:07:04]}  Qxf4 {[%clk 0:05:55]} 31. Rae1 {[%clk 0:05:54]}  Bf2 {[%clk 0:05:16]} 32. R1e2 {[%clk 0:05:49]}  Bg4 {[%clk 0:05:21]} 33. Rxf2 {[%clk 0:02:09]}  Qxf2 {[%clk 0:04:49]} 34. Rxd5 {[%clk 0:01:52]}  Qg1 {[%clk 0:02:07]} 35. Ne4 {[%clk 0:01:13]}  Qg2+ {[%clk 0:02:16]} 36. Kb1 {[%clk 0:01:24]}  Be6 {[%clk 0:02:28]} 37. Rc5+ {[%clk 0:01:44]}  Kb6 {[%clk 0:02:29]} 38. Bc2 {[%clk 0:01:23]}  Qh2 {[%clk 0:01:49]} 39. Kb2 {[%clk 0:01:16]}  Bf5 {[%clk 0:01:39]} 40. Rc4 {[%clk 0:01:20]}  g5 {[%clk 0:01:24]} 41. Rd4 {[%clk 0:26:23]}  g4 {[%clk 0:27:07]} 42. Rd2 {[%clk 0:24:59]}  Qg1 {[%clk 0:26:23]} 43. Rd1 {[%clk 0:22:22]}  Qg2 {[%clk 0:26:05]} 44. Rd4 {[%clk 0:17:19]}  Bxe4 {[%clk 0:25:29]} 45. Rxe4 {[%clk 0:17:39]}  g3 {[%clk 0:25:54]} 46. Kb3 {[%clk 0:10:48]}  Qf2 {[%clk 0:26:13]} 47. Re6+ {[%clk 0:09:12]}  Kc5 {[%clk 0:26:32]} 48. Re5+ {[%clk 0:04:24]}  Kd6 {[%clk 0:26:51]} 49. Rf5 {[%clk 0:04:43]}  Qxf5 {[%clk 0:27:14]} 0-1


[Site "http://www.chessbomb.com"]

[Event "World Junior Chess Championship U20 2022"]
[White "Nemeth, Zalan"]
[Black "Petkov, Momchil"]
[WhiteFideId "2512041"]
[BlackFideId "2921642"]
[WhiteElo "2247"]
[BlackElo "2511"]
[Result "0-1"]
[Round "02"]
[TimeControl "5400+30"]
[Date "2022.10.13"]
[WhiteClock "0:29:47"]
[BlackClock "0:19:08"]

1. c4 {[%clk 1:30:41]}  e5 {[%clk 1:30:46]} 2. Nc3 {[%clk 1:30:52]}  Bb4 {[%clk 1:30:56]} 3. Nd5 {[%clk 1:30:38]}  a5 {[%clk 1:31:19]} 4. Nf3 {[%clk 1:30:51]}  d6 {[%clk 1:31:19]} 5. a3 {[%clk 1:31:13]}  Bc5 {[%clk 1:31:19]} 6. e3 {[%clk 1:31:13]}  c6 {[%clk 1:31:19]} 7. d4 {[%clk 1:32:06]}  Ba7 {[%clk 1:31:51]} 8. Nc3 {[%clk 1:32:31]}  Nd7 {[%clk 1:32:08]} 9. Qc2 {[%clk 1:32:40]}  Ngf6 {[%clk 1:30:59]} 10. Bd2 {[%clk 1:33:04]}  Qe7 {[%clk 1:23:14]} 11. O-O-O {[%clk 1:31:55]}  O-O {[%clk 1:23:14]} 12. Kb1 {[%clk 1:32:19]}  b5 {[%clk 1:05:22]} 13. cxb5 {[%clk 1:24:46]}  Bb7 {[%clk 1:05:48]} 14. bxc6 {[%clk 1:09:09]}  Bxc6 {[%clk 1:06:09]} 15. Bb5 {[%clk 1:09:04]}  Bb7 {[%clk 0:56:34]} 16. Qa4 {[%clk 1:03:48]}  Nb6 {[%clk 0:49:34]} 17. Qb3 {[%clk 0:50:41]}  a4 {[%clk 0:47:08]} 18. Qb4 {[%clk 0:43:15]}  Nfd5 {[%clk 0:34:20]} 19. Nxd5 {[%clk 0:43:37]}  Nxd5 {[%clk 0:34:45]} 20. Qxa4 {[%clk 0:40:50]}  Bxd4 {[%clk 0:34:35]} 21. Qb3 {[%clk 0:36:30]}  Bc5 {[%clk 0:31:14]} 22. Bc4 {[%clk 0:36:28]}  Nf6 {[%clk 0:28:35]} 23. Bb4 {[%clk 0:29:45]}  Be4+ {[%clk 0:23:49]} 24. Ka1 {[%clk 0:30:09]}  Rfb8 {[%clk 0:20:56]} 25. Bxf7+ {[%clk 0:29:47]}  Kh8 {[%clk 0:19:08]} 0-1


[Site "http://www.chessbomb.com"]

[Event "World Junior Chess Championship U20 2022"]
[White "Abdurakhmonov, Mukhammadali"]
[Black "Parkhov, Yair"]
[WhiteFideId "14207346"]
[BlackFideId "2813408"]
[WhiteElo "2345"]
[BlackElo "2484"]
[Result "1-0"]
[Round "02"]
[TimeControl "5400+30"]
[Date "2022.10.13"]
[WhiteClock "0:01:25"]
[BlackClock "0:01:53"]

1. d4 {[%clk 1:28:55]}  Nf6 {[%clk 1:30:53]} 2. Nf3 {[%clk 1:29:09]}  d5 {[%clk 1:31:11]} 3. c4 {[%clk 1:29:16]}  e6 {[%clk 1:31:34]} 4. Qc2 {[%clk 1:27:20]}  c5 {[%clk 1:23:46]} 5. dxc5 {[%clk 1:13:33]}  d4 {[%clk 1:22:01]} 6. e3 {[%clk 1:05:22]}  dxe3 {[%clk 1:13:48]} 7. Bxe3 {[%clk 1:05:46]}  Na6 {[%clk 0:59:23]} 8. Nc3 {[%clk 0:57:59]}  Bxc5 {[%clk 0:59:36]} 9. Rd1 {[%clk 0:58:12]}  Qe7 {[%clk 0:52:54]} 10. Bg5 {[%clk 0:57:37]}  Nb4 {[%clk 0:47:25]} 11. Qb1 {[%clk 0:49:39]}  Nc6 {[%clk 0:46:02]} 12. a3 {[%clk 0:47:19]}  a5 {[%clk 0:42:14]} 13. Be2 {[%clk 0:37:48]}  h6 {[%clk 0:40:49]} 14. Bh4 {[%clk 0:36:18]}  g5 {[%clk 0:37:29]} 15. Bg3 {[%clk 0:36:13]}  e5 {[%clk 0:36:36]} 16. Nd5 {[%clk 0:33:02]}  Nxd5 {[%clk 0:36:49]} 17. cxd5 {[%clk 0:33:27]}  Nd4 {[%clk 0:36:24]} 18. Nxd4 {[%clk 0:29:12]}  Bxd4 {[%clk 0:35:35]} 19. h4 {[%clk 0:21:15]}  g4 {[%clk 0:35:22]} 20. O-O {[%clk 0:21:31]}  O-O {[%clk 0:34:53]} 21. Rfe1 {[%clk 0:17:19]}  Qf6 {[%clk 0:26:48]} 22. Rxd4 {[%clk 0:15:32]}  exd4 {[%clk 0:26:58]} 23. Bd3 {[%clk 0:15:56]}  Qd8 {[%clk 0:23:57]} 24. Bh7+ {[%clk 0:15:56]}  Kh8 {[%clk 0:24:19]} 25. Be5+ {[%clk 0:12:13]}  f6 {[%clk 0:24:43]} 26. Bxd4 {[%clk 0:12:40]}  Ra6 {[%clk 0:16:47]} 27. Bd3 {[%clk 0:05:36]}  Qxd5 {[%clk 0:16:04]} 28. Qc1 {[%clk 0:05:36]}  Qf7 {[%clk 0:09:48]} 29. Qxh6+ {[%clk 0:05:05]}  Kg8 {[%clk 0:10:17]} 30. Bxa6 {[%clk 0:04:59]}  bxa6 {[%clk 0:10:41]} 31. Bc5 {[%clk 0:05:24]}  Re8 {[%clk 0:11:01]} 32. Rxe8+ {[%clk 0:05:36]}  Qxe8 {[%clk 0:11:26]} 33. Qxf6 {[%clk 0:06:02]}  Qe6 {[%clk 0:09:51]} 34. Qd8+ {[%clk 0:04:31]}  Kh7 {[%clk 0:09:01]} 35. Bd4 {[%clk 0:04:46]}  Kg6 {[%clk 0:09:27]} 36. Qxa5 {[%clk 0:04:29]}  Qf5 {[%clk 0:07:23]} 37. Qd8 {[%clk 0:01:35]}  Kf7 {[%clk 0:07:33]} 38. h5 {[%clk 0:01:14]}  Be6 {[%clk 0:07:34]} 39. Qc7+ {[%clk 0:01:23]}  Bd7 {[%clk 0:07:51]} 40. Qe5 {[%clk 0:00:43]}  Qxe5 {[%clk 0:01:31]} 41. Bxe5 {[%clk 0:01:12]}  a5 {[%clk 0:01:53]} 42. b4 {[%clk 0:01:25]} 1-0


[Site "http://www.chessbomb.com"]

[Event "World Junior Chess Championship U20 2022"]
[White "Gorshtein, Ido"]
[Black "Nouri, Alekhine"]
[WhiteFideId "2815532"]
[BlackFideId "5216184"]
[WhiteElo "2471"]
[BlackElo "2251"]
[Result "1-0"]
[Round "02"]
[TimeControl "5400+30"]
[Date "2022.10.13"]
[WhiteClock "1:04:16"]
[BlackClock "0:13:21"]

1. c4 {[%clk 1:30:54]}  e5 {[%clk 1:30:35]} 2. g3 {[%clk 1:31:17]}  c6 {[%clk 1:30:43]} 3. Nf3 {[%clk 1:31:38]}  e4 {[%clk 1:30:57]} 4. Nd4 {[%clk 1:32:06]}  d5 {[%clk 1:31:16]} 5. cxd5 {[%clk 1:32:29]}  Qxd5 {[%clk 1:31:32]} 6. Nc2 {[%clk 1:32:48]}  Nf6 {[%clk 1:31:46]} 7. Nc3 {[%clk 1:33:11]}  Qh5 {[%clk 1:31:58]} 8. Ne3 {[%clk 1:33:01]}  Bh3 {[%clk 1:21:05]} 9. Qb3 {[%clk 1:29:40]}  b5 {[%clk 1:19:30]} 10. Qc2 {[%clk 1:27:19]}  Bxf1 {[%clk 1:18:22]} 11. Rxf1 {[%clk 1:27:42]}  Qg6 {[%clk 1:16:13]} 12. Nxb5 {[%clk 1:26:13]}  Kd7 {[%clk 0:57:37]} 13. Nc3 {[%clk 1:24:30]}  Na6 {[%clk 0:53:57]} 14. Qa4 {[%clk 1:15:46]}  Nc5 {[%clk 0:51:23]} 15. Qd4+ {[%clk 1:12:37]}  Kc7 {[%clk 0:50:41]} 16. b4 {[%clk 1:11:52]}  Ne6 {[%clk 0:42:45]} 17. Qc4 {[%clk 1:11:56]}  Qh5 {[%clk 0:43:00]} 18. Bb2 {[%clk 1:10:53]}  Rb8 {[%clk 0:40:52]} 19. Rc1 {[%clk 1:10:08]}  Bc5 {[%clk 0:37:10]} 20. a3 {[%clk 1:05:16]}  Bxe3 {[%clk 0:15:24]} 21. fxe3 {[%clk 1:05:06]}  Nd7 {[%clk 0:12:48]} 22. Nd5+ {[%clk 1:05:06]}  Kd8 {[%clk 0:13:14]} 23. Qxc6 {[%clk 1:03:57]}  Qxh2 {[%clk 0:13:21]} 24. Qd6 {[%clk 1:04:16]} 1-0


[Site "http://www.chessbomb.com"]

[Event "World Junior Chess Championship U20 2022"]
[White "Prraneeth, Vuppala"]
[Black "Avila Rodriguez, Joshua Ad"]
[WhiteFideId "46622373"]
[BlackFideId "5126444"]
[WhiteElo "2451"]
[BlackElo "2225"]
[Result "1-0"]
[Round "02"]
[TimeControl "5400+30"]
[Date "2022.10.13"]
[WhiteClock "0:01:07"]
[BlackClock "0:00:32"]

1. e4 {[%clk 1:30:57]}  c5 {[%clk 1:26:52]} 2. Nf3 {[%clk 1:31:20]}  d6 {[%clk 1:27:05]} 3. d4 {[%clk 1:30:57]}  cxd4 {[%clk 1:27:28]} 4. Nxd4 {[%clk 1:31:22]}  Nf6 {[%clk 1:27:53]} 5. Nc3 {[%clk 1:31:46]}  a6 {[%clk 1:28:10]} 6. Be3 {[%clk 1:31:25]}  e5 {[%clk 1:26:33]} 7. Nb3 {[%clk 1:31:44]}  Be6 {[%clk 1:23:21]} 8. f3 {[%clk 1:31:00]}  Be7 {[%clk 1:22:58]} 9. Qd2 {[%clk 1:30:31]}  h5 {[%clk 1:23:03]} 10. Be2 {[%clk 1:30:22]}  Nbd7 {[%clk 1:22:48]} 11. Nd5 {[%clk 1:29:45]}  Bxd5 {[%clk 1:21:23]} 12. exd5 {[%clk 1:30:08]}  Qc7 {[%clk 1:21:42]} 13. Rc1 {[%clk 1:30:04]}  O-O {[%clk 1:21:20]} 14. c4 {[%clk 1:30:01]}  a5 {[%clk 1:21:35]} 15. Na1 {[%clk 1:29:40]}  Nh7 {[%clk 1:21:29]} 16. Nc2 {[%clk 1:29:39]}  Qd8 {[%clk 1:21:20]} 17. Na3 {[%clk 1:29:38]}  Bg5 {[%clk 1:21:36]} 18. Nb5 {[%clk 1:29:58]}  Nc5 {[%clk 1:21:59]} 19. O-O {[%clk 1:28:54]}  f5 {[%clk 1:21:58]} 20. Bd3 {[%clk 1:21:00]}  Bxe3+ {[%clk 0:52:46]} 21. Qxe3 {[%clk 1:21:22]}  h4 {[%clk 0:50:42]} 22. f4 {[%clk 1:18:53]}  exf4 {[%clk 0:27:33]} 23. Rxf4 {[%clk 1:16:49]}  g6 {[%clk 0:27:28]} 24. Bc2 {[%clk 0:50:00]}  Qf6 {[%clk 0:25:13]} 25. Qd4 {[%clk 0:36:31]}  Rae8 {[%clk 0:05:23]} 26. Qxf6 {[%clk 0:30:24]}  Rxf6 {[%clk 0:05:44]} 27. Rxh4 {[%clk 0:27:32]}  Ng5 {[%clk 0:04:51]} 28. Rf4 {[%clk 0:23:25]}  Kg7 {[%clk 0:04:09]} 29. a3 {[%clk 0:20:15]}  Re2 {[%clk 0:01:03]} 30. b4 {[%clk 0:10:01]}  axb4 {[%clk 0:01:24]} 31. axb4 {[%clk 0:10:28]}  Na6 {[%clk 0:01:25]} 32. Nd4 {[%clk 0:06:17]}  Rd2 {[%clk 0:01:05]} 33. h4 {[%clk 0:03:50]}  Ne4 {[%clk 0:00:35]} 34. Ne6+ {[%clk 0:03:01]}  Rxe6 {[%clk 0:00:31]} 35. dxe6 {[%clk 0:03:27]}  Ng3 {[%clk 0:00:39]} 36. Rf2 {[%clk 0:02:46]}  Re2 {[%clk 0:00:32]} 37. Rf3 {[%clk 0:00:48]}  f4 {[%clk 0:00:51]} 38. Bd3 {[%clk 0:00:40]}  Nxb4 {[%clk 0:00:32]} 39. Rxg3 {[%clk 0:00:37]}  Rd2 {[%clk 0:00:31]} 40. Rxg6+ {[%clk 0:00:59]}  Kh7 {[%clk 0:00:32]} 41. e7 {[%clk 0:01:07]} 1-0


[Site "http://www.chessbomb.com"]